fUSD/lending_fUSD_20240416
["ID","MTS","AMOUNT","RATE_DAILY","PERIOD"]
[322719871,1713228834658,-827.01,0.00020898,2]
[322719872,1713228834667,-827.01,0.00020898,2]
[322719873,1713228834677,-500.0,0.00020898,2]
[322719874,1713228834686,-1761.28,0.00020898,2]
[322719875,1713228834695,-1761.28,0.00020898,2]
[322719876,1713228834704,-1761.28,0.00020898,2]
[322719877,1713228834713,-500.0,0.00020898,2]
[322719878,1713228834723,-500.0,0.00020898,2]
[322719879,1713228834732,-500.0,0.00020898,2]
[322719880,1713228834740,-500.0,0.00020898,2]
[322719881,1713228834749,-564.62,0.00020898,2]
[322719882,1713228834758,-564.62,0.00020898,2]
[322719883,1713228834767,-564.62,0.00020898,2]
[322719884,1713228834777,-1146.92,0.00020898,2]
[322719885,1713228834786,-1146.92,0.00020898,2]
[322719886,1713228834796,-1146.92,0.00020898,2]
[322719887,1713228834806,-500.0,0.00020898,2]
[322719888,1713228834816,-1391.11,0.00020898,2]
[322719889,1713228834831,-1391.11,0.00020898,2]
[322719890,1713228834840,-500.0,0.00020898,2]
[322719891,1713228834849,-1391.11,0.00020898,2]
[322719892,1713228834859,-4411.48,0.00020898,2]
[322719893,1713228834868,-4411.48,0.00020898,2]
[322719894,1713228834878,-4411.48,0.00020898,2]
[322719895,1713228834887,-639.91,0.00020898,2]
[322719896,1713228834896,-639.91,0.00020898,2]
[322719897,1713228834907,-639.91,0.00020898,2]
[322719898,1713228834917,-500.0,0.00020898,2]
[322719899,1713228834927,-1475.43,0.00020898,2]
[322719900,1713228834936,-1475.43,0.00020898,2]
[322719901,1713228834946,-1475.43,0.00020898,2]
[322719902,1713228834955,-264.23787672,0.00020898,2]
[322719903,1713228834964,-602.09776256,0.00020898,2]
[322719904,1713228834974,-500.0,0.00020898,2]
[322719905,1713228834983,-1744.76,0.00020898,2]
[322719906,1713228834994,-1744.76,0.00020898,2]
[322719907,1713228835003,-1744.76,0.00020898,2]
[322719908,1713228835012,-674.63,0.00020898,2]
[322719909,1713228835023,-674.63,0.00020898,2]
[322719910,1713228835038,-1074.59,0.00020898,2]
[322719911,1713228835048,-674.63,0.00020898,2]
[322719912,1713228835057,-1074.59,0.00020898,2]
[322719913,1713228835067,-1074.59,0.00020898,2]
[322719914,1713228835076,-500.0,0.00020898,2]
[322719915,1713228835085,-1390.8,0.00020898,2]
[322719916,1713228835094,-1390.8,0.00020898,2]
[322719917,1713228835103,-1390.8,0.00020898,2]
[322719918,1713228835113,-786.35,0.00020898,2]
[322719919,1713228835123,-786.35,0.00020898,2]
[322719920,1713228835132,-500.0,0.00020898,2]
[322719921,1713228835142,-786.35,0.00020898,2]
[322719922,1713228835151,-825.37,0.00020898,2]
[322719923,1713228835160,-825.37,0.00020898,2]
[322719924,1713228835169,-825.37,0.00020898,2]
[322719925,1713228835179,-1157.68,0.00020898,2]
[322719926,1713228835188,-1157.68,0.00020898,2]
[322719927,1713228835197,-1157.68,0.00020898,2]
[322719928,1713228835206,-601.86579589,0.00020898,2]
[322719929,1713228835216,-500.0,0.00020898,2]
[322719930,1713228835225,-500.0,0.00020898,2]
[322719931,1713228835235,-500.0,0.00020898,2]
[322719932,1713228835243,-500.0,0.00020898,2]
[322719933,1713228835253,-1116.82,0.00020898,2]
[322719934,1713228835263,-500.0,0.00020898,2]
[322719935,1713228835272,-1116.82,0.00020898,2]
[322719936,1713228835284,-439.9887103,0.00020898,2]
[322719937,1713228835293,-1116.82,0.00020898,2]
[322719938,1713228835303,-500.0,0.00020898,2]
[322719939,1713228835313,-2736.41,0.00020898,2]
[322719940,1713228835323,-2736.41,0.00020898,2]
[322719941,1713228835332,-2736.41,0.00020898,2]
[322719942,1713228835456,-501.05077112,0.00020898,2]
[322719943,1713228835465,-1051.67,0.00020898,2]
[322719944,1713228835475,-1064.37,0.00020898,2]
[322719945,1713228835485,-1064.37,0.00020898,2]
[322719946,1713228835494,-1051.67,0.00020898,2]
[322719947,1713228835503,-1064.37,0.00020898,2]
[322719948,1713228835512,-1051.67,0.00020898,2]
[322719949,1713228835521,-642.09790451,0.00020898,2]
[322719950,1713228835532,-637.74,0.00020898,2]
[322719951,1713228835541,-637.74,0.00020898,2]
[322719952,1713228835551,-637.74,0.00020898,2]
[322719953,1713228835560,-500.0,0.00020898,2]
[322719954,1713228835570,-1643.84,0.00020898,2]
[322719955,1713228835581,-1643.84,0.00020898,2]
[322719956,1713228835590,-1643.84,0.00020898,2]
[322719957,1713228835599,-500.0,0.00020898,2]
[322719958,1713228835608,-1637.39,0.00020898,2]
[322719959,1713228835618,-1637.39,0.00020898,2]
[322719960,1713228835628,-1637.39,0.00020898,2]
[322719961,1713228835637,-1256.6,0.00020898,2]
[322719962,1713228835646,-1256.6,0.00020898,2]
[322719963,1713228835656,-1256.6,0.00020898,2]
[322719964,1713228835665,-500.0,0.00020898,2]
[322719965,1713228835675,-500.0,0.00020898,2]
[322719966,1713228835684,-500.0,0.00020898,2]
[322719967,1713228835693,-640.12558202,0.00020898,2]
[322719968,1713228835703,-1665.03,0.00020898,2]
[322719969,1713228835712,-1665.03,0.00020898,2]
[322719970,1713228835721,-523.25,0.00020898,2]
[322719971,1713228835730,-1665.03,0.00020898,2]
[322719972,1713228835739,-523.25,0.00020898,2]
[322719973,1713228835748,-523.25,0.00020898,2]
[322719974,1713228835757,-795.93,0.00020898,2]
[322719975,1713228835766,-795.93,0.00020898,2]
[322719976,1713228835778,-795.93,0.00020898,2]
[322719977,1713228835786,-852.13,0.00020898,2]
[322719978,1713228835795,-852.13,0.00020898,2]
[322719979,1713228835804,-852.13,0.00020898,2]
[322719980,1713228835814,-3377.04,0.00020898,2]
[322719981,1713228835828,-3377.04,0.00020898,2]
[322719982,1713228835837,-500.0,0.00020898,2]
[322719983,1713228835847,-3377.04,0.00020898,2]
[322719984,1713228835856,-718.44,0.00020898,2]
[322719985,1713228835866,-718.44,0.00020898,2]
[322719986,1713228835876,-718.44,0.00020898,2]
[322719987,1713228835884,-500.0,0.00020898,2]
[322719988,1713228835894,-500.0,0.00020898,2]
[322719989,1713228835904,-500.0,0.00020898,2]
[322719990,1713228835915,-500.0,0.00020898,2]
[322719991,1713228835924,-1765.28,0.00020898,2]
[322719992,1713228835934,-550.17,0.00020898,2]
[322719993,1713228835944,-550.17,0.00020898,2]
[322719994,1713228835954,-2051.23,0.00020898,2]
[322719995,1713228835964,-500.0,0.00020898,2]
[322719996,1713228835974,-550.17,0.00020898,2]
[322719997,1713228835984,-2051.23,0.00020898,2]
[322719998,1713228835993,-500.0,0.00020898,2]
[322719999,1713228836003,-2051.23,0.00020898,2]
[322720000,1713228836013,-500.0,0.00020898,2]
[322720001,1713228836022,-500.0,0.00020898,2]
[322720002,1713228836034,-500.0,0.00020898,2]
[322720003,1713228836044,-500.0,0.00020898,2]
[322720004,1713228836053,-540.94,0.00020898,2]
[322720005,1713228836062,-540.94,0.00020898,2]
[322720006,1713228836072,-540.94,0.00020898,2]
[322720007,1713228836082,-500.0,0.00020898,2]
[322720008,1713228836092,-500.0,0.00020898,2]
[322720009,1713228836103,-500.0,0.00020898,2]
[322720010,1713228836113,-500.0,0.00020898,2]
[322720011,1713228836125,-500.0,0.00020898,2]
[322720012,1713228836135,-872.9,0.00020898,2]
[322720013,1713228836144,-872.9,0.00020898,2]
[322720014,1713228836153,-872.9,0.00020898,2]
[322720015,1713228836162,-2147.23,0.00020898,2]
[322720016,1713228836172,-2147.23,0.00020898,2]
[322720017,1713228836181,-2147.23,0.00020898,2]
[322720018,1713228836191,-621.50848606,0.00020898,2]
[322720019,1713228836200,-500.0,0.00020898,2]
[322720020,1713228836210,-561.32067931,0.00020898,2]
[322720021,1713228836219,-2977.92,0.00020898,2]
[322720022,1713228836229,-4226.46,0.00020898,2]
[322720023,1713228836239,-4226.46,0.00020898,2]
[322720024,1713228836248,-4226.46,0.00020898,2]
[322720025,1713228836258,-739.73,0.00020898,2]
[322720026,1713228836267,-739.73,0.00020898,2]
[322720027,1713228836278,-739.73,0.00020898,2]
[322720028,1713228836288,-500.0,0.00020898,2]
[322720029,1713228836298,-3391.63,0.00020898,2]
[322720030,1713228836307,-3391.63,0.00020898,2]
[322720031,1713228836317,-3391.63,0.00020898,2]
[322720032,1713228836328,-500.0,0.00020898,2]
[322720033,1713228836338,-888.11,0.00020898,2]
[322720034,1713228836348,-888.11,0.00020898,2]
[322720035,1713228836358,-888.11,0.00020898,2]
[322720036,1713228836368,-4945.52,0.00020898,2]
[322720037,1713228836378,-4945.52,0.00020898,2]
[322720038,1713228836388,-4945.52,0.00020898,2]
[322720039,1713228836398,-500.0,0.00020898,2]
[322720040,1713228836407,-529.54955057,0.00020898,2]
[322720041,1713228836417,-500.0,0.00020898,2]
[322720042,1713228836426,-364.73296618,0.00020898,2]
[322720043,1713228836435,-653.68,0.00020898,2]
[322720044,1713228836444,-653.68,0.00020898,2]
[322720045,1713228836453,-653.68,0.00020898,2]
[322720046,1713228836463,-2524.33,0.00020898,2]
[322720047,1713228836472,-500.0,0.00020898,2]
[322720048,1713228836482,-500.0,0.00020898,2]
[322720049,1713228836491,-500.0,0.00020898,2]
[322720050,1713228836501,-500.0,0.00020898,2]
[322720051,1713228836511,-500.0,0.00020898,2]
[322720052,1713228836520,-500.0,0.00020898,2]
[322720053,1713228836531,-533.19,0.00020898,2]
[322720054,1713228836541,-531.71839575,0.00020898,2]
[322720055,1713228836551,-533.19,0.00020898,2]
[322720056,1713228836561,-3027.04,0.00020898,2]
[322720057,1713228836571,-533.19,0.00020898,2]
[322720058,1713228836581,-3027.04,0.00020898,2]
[322720059,1713228836591,-3027.04,0.00020898,2]
[322720060,1713228836602,-500.0,0.00020898,2]
[322720061,1713228836611,-523.16,0.00020898,2]
[322720062,1713228836621,-523.16,0.00020898,2]
[322720063,1713228836631,-523.16,0.00020898,2]
[322720064,1713228836640,-909.24,0.00020898,2]
[322720065,1713228836650,-909.24,0.00020898,2]
[322720066,1713228836659,-909.24,0.00020898,2]
[322720067,1713228836668,-500.0,0.00020898,2]
[322720068,1713228836678,-500.0,0.00020898,2]
[322720069,1713228836688,-500.0,0.00020898,2]
[322720070,1713228836698,-1182.16,0.00020898,2]
[322720071,1713228836707,-1182.16,0.00020898,2]
[322720072,1713228836716,-1182.16,0.00020898,2]
[322720073,1713228836726,-925.78,0.00020898,2]
[322720074,1713228836735,-925.78,0.00020898,2]
[322720075,1713228836744,-925.78,0.00020898,2]
[322720076,1713228836754,-1742.97,0.00020898,2]
[322720077,1713228836763,-1742.97,0.00020898,2]
[322720078,1713228836773,-1742.97,0.00020898,2]
[322720079,1713228836783,-547.63275316,0.00020898,2]
[322720080,1713228836792,-500.0,0.00020898,2]
[322720081,1713228836805,-1296.69,0.00020898,2]
[322720082,1713228836815,-500.0,0.00020898,2]
[322720083,1713228836829,-500.0,0.00020898,2]
[322720084,1713228836838,-562.28806136,0.00020898,2]
[322720085,1713228836847,-1137.76,0.00020898,2]
[322720086,1713228836856,-1137.76,0.00020898,2]
[322720087,1713228836866,-1137.76,0.00020898,2]
[322720088,1713228836875,-500.0,0.00020898,2]
[322720089,1713228836885,-536.60358188,0.00020898,2]
[322720090,1713228836894,-177.80982357,0.00020898,2]
[322720091,1713228836905,-500.0,0.00020898,2]
[322720092,1713228836915,-500.0,0.00020898,2]
[322720093,1713228836924,-500.0,0.00020898,2]
[322720094,1713228836934,-500.0,0.00020898,2]
[322720095,1713228836943,-2034.04,0.00020898,2]
[322720096,1713228836952,-331.91085988,0.00020898,2]
[322720097,1713228836962,-500.0,0.00020898,2]
[322720098,1713228836972,-500.0,0.00020898,2]
[322720099,1713228836981,-230.93063049,0.00020898,2]
[322720100,1713228836991,-585.27,0.00020898,2]
[322720101,1713228837001,-585.27,0.00020898,2]
[322720102,1713228837010,-585.27,0.00020898,2]
[322720103,1713228837019,-588.17031186,0.00020898,2]
[322720104,1713228837030,-1042.63,0.00020898,2]
[322720105,1713228837039,-1042.63,0.00020898,2]
[322720106,1713228837049,-1042.63,0.00020898,2]
[322720107,1713228837059,-515.75,0.00020898,2]
[322720108,1713228837068,-515.75,0.00020898,2]
[322720109,1713228837077,-3844.61,0.00020898,2]
[322720110,1713228837086,-515.75,0.00020898,2]
[322720111,1713228837096,-500.0,0.00020898,2]
[322720112,1713228837105,-500.0,0.00020898,2]
[322720113,1713228837114,-500.0,0.00020898,2]
[322720114,1713228837124,-500.0,0.00020898,2]
[322720115,1713228837133,-766.97,0.00020898,2]
[322720116,1713228837142,-766.97,0.00020898,2]
[322720117,1713228837152,-766.97,0.00020898,2]
[322720118,1713228837161,-383.2172161,0.00020898,2]
[322720119,1713228837171,-1307.39,0.00020898,2]
[322720120,1713228837180,-1307.39,0.00020898,2]
[322720121,1713228837189,-1307.39,0.00020898,2]
[322720122,1713228837199,-3569.99,0.00020898,2]
[322720123,1713228837208,-500.0,0.00020898,2]
[322720124,1713228837218,-949.4,0.00020898,2]
[322720125,1713228837227,-949.4,0.00020898,2]
[322720126,1713228837236,-949.4,0.00020898,2]
[322720127,1713228837246,-500.65,0.00020898,2]
[322720128,1713228837255,-500.65,0.00020898,2]
[322720129,1713228837264,-500.65,0.00020898,2]
[322720130,1713228837274,-502.60120983,0.00020898,2]
[322720131,1713228837286,-1733.3,0.00020898,2]
[322720132,1713228837295,-1733.3,0.00020898,2]
[322720133,1713228837305,-1733.3,0.00020898,2]
[322720134,1713228837314,-741.27,0.00020898,2]
[322720135,1713228837324,-500.0,0.00020898,2]
[322720136,1713228837333,-741.27,0.00020898,2]
[322720137,1713228837342,-741.27,0.00020898,2]
[322720138,1713228837351,-1434.18,0.00020898,2]
[322720139,1713228837360,-1434.18,0.00020898,2]
[322720140,1713228837369,-1434.18,0.00020898,2]
[322720141,1713228837378,-500.0,0.00020898,2]
[322720142,1713228837387,-500.0,0.00020898,2]
[322720143,1713228837396,-500.0,0.00020898,2]
[322720144,1713228837406,-1988.44,0.00020898,2]
[322720145,1713228837415,-827.99,0.00020898,2]
[322720146,1713228837424,-827.99,0.00020898,2]
[322720147,1713228837433,-827.99,0.00020898,2]
[322720148,1713228837443,-500.0,0.00020898,2]
[322720149,1713228837452,-500.0,0.00020898,2]
[322720150,1713228837462,-500.0,0.00020898,2]
[322720151,1713228837471,-822.07,0.00020898,2]
[322720152,1713228837480,-822.07,0.00020898,2]
[322720153,1713228837489,-822.07,0.00020898,2]
[322720154,1713228837498,-2506.71,0.00020898,2]
[322720155,1713228837507,-2156.99,0.00020898,2]
[322720156,1713228837516,-2156.99,0.00020898,2]
[322720157,1713228837527,-2156.99,0.00020898,2]
[322720158,1713228837536,-500.0,0.00020898,2]
[322720159,1713228837545,-899.17,0.00020898,2]
[322720160,1713228837554,-899.17,0.00020898,2]
[322720161,1713228837564,-899.17,0.00020898,2]
[322720162,1713228837573,-560.5,0.00020898,2]
[322720163,1713228837582,-560.5,0.00020898,2]
[322720164,1713228837591,-2077.1,0.00020898,2]
[322720165,1713228837600,-560.5,0.00020898,2]
[322720166,1713228837609,-602.28,0.00020898,2]
[322720167,1713228837617,-602.28,0.00020898,2]
[322720168,1713228837627,-602.28,0.00020898,2]
[322720169,1713228837636,-844.44,0.00020898,2]
[322720170,1713228837644,-844.44,0.00020898,2]
[322720171,1713228837653,-844.44,0.00020898,2]
[322720172,1713228837662,-500.0,0.00020898,2]
[322720173,1713228837671,-922.38,0.00020898,2]
[322720174,1713228837681,-922.38,0.00020898,2]
[322720175,1713228837690,-500.0,0.00020898,2]
[322720176,1713228837699,-224.42042329,0.00020898,2]
[322720177,1713228837708,-922.38,0.00020898,2]
[322720178,1713228837717,-526.24160075,0.00020898,2]
[322720179,1713228837726,-1588.68,0.00020898,2]
[322720180,1713228837735,-1588.68,0.00020898,2]
[322720181,1713228837744,-1588.68,0.00020898,2]
[322720182,1713228837753,-504.50250593,0.00020898,2]
[322720183,1713228837762,-3481.3,0.00020898,2]
[322720184,1713228837771,-713.27,0.00020898,2]
[322720185,1713228837782,-713.27,0.00020898,2]
[322720186,1713228837791,-713.27,0.00020898,2]
[322720187,1713228837800,-575.68124983,0.00020898,2]
[322720188,1713228837809,-2402.94,0.00020898,2]
[322720189,1713228837818,-2402.94,0.00020898,2]
[322720190,1713228837832,-2402.94,0.00020898,2]
[322720191,1713228837841,-500.0,0.00020898,2]
[322720192,1713228837850,-500.0,0.00020898,2]
[322720193,1713228837859,-500.0,0.00020898,2]
[322720194,1713228837869,-549.58042156,0.00020898,2]
[322720195,1713228837878,-1204.65,0.00020898,2]
[322720196,1713228837887,-500.0,0.00020898,2]
[322720197,1713228837896,-1204.65,0.00020898,2]
[322720198,1713228837905,-1204.65,0.00020898,2]
[322720199,1713228837916,-500.0,0.00020898,2]
[322720200,1713228837926,-500.0,0.00020898,2]
[322720201,1713228837936,-500.0,0.00020898,2]
[322720202,1713228837946,-1026.51,0.00020898,2]
[322720203,1713228837955,-1026.51,0.00020898,2]
[322720204,1713228837964,-500.0,0.00020898,2]
[322720205,1713228837974,-500.0,0.00020898,2]
[322720206,1713228837983,-1026.51,0.00020898,2]
[322720207,1713228837993,-500.0,0.00020898,2]
[322720208,1713228838002,-500.0,0.00020898,2]
[322720209,1713228838011,-506.56032431,0.00020898,2]
[322720210,1713228838021,-500.0,0.00020898,2]
[322720211,1713228838030,-1315.58,0.00020898,2]
[322720212,1713228838040,-1315.58,0.00020898,2]
[322720213,1713228838049,-1315.58,0.00020898,2]
[322720214,1713228838059,-1796.39,0.00020898,2]
[322720215,1713228838068,-500.0,0.00020898,2]
[322720216,1713228838078,-1796.39,0.00020898,2]
[322720217,1713228838087,-1796.39,0.00020898,2]
[322720218,1713228838096,-3220.5,0.00020898,2]
[322720219,1713228838105,-3220.5,0.00020898,2]
[322720220,1713228838114,-3220.5,0.00020898,2]
[322720221,1713228838123,-1159.61,0.00020898,2]
[322720222,1713228838132,-1159.61,0.00020898,2]
[322720223,1713228838141,-1159.61,0.00020898,2]
[322720224,1713228838151,-500.0,0.00020898,2]
[322720225,1713228838160,-710.76,0.00020898,2]
[322720226,1713228838169,-710.76,0.00020898,2]
[322720227,1713228838179,-710.76,0.00020898,2]
[322720228,1713228838188,-603.51,0.00020898,2]
[322720229,1713228838198,-603.51,0.00020898,2]
[322720230,1713228838207,-603.51,0.00020898,2]
[322720231,1713228838217,-500.0,0.00020898,2]
[322720232,1713228838226,-500.0,0.00020898,2]
[322720233,1713228838237,-440.66280786,0.00020898,2]
[322720234,1713228838246,-914.13,0.00020898,2]
[322720235,1713228838255,-1530.08,0.00020898,2]
[322720236,1713228838264,-1530.08,0.00020898,2]
[322720237,1713228838273,-1530.08,0.00020898,2]
[322720238,1713228838283,-616.95,0.00020898,2]
[322720239,1713228838292,-616.95,0.00020898,2]
[322720240,1713228838301,-616.95,0.00020898,2]
[322720241,1713228838311,-875.5,0.00020898,2]
[322720242,1713228838320,-875.5,0.00020898,2]
[322720243,1713228838330,-875.5,0.00020898,2]
[322720244,1713228838340,-1684.26,0.00020898,2]
[322720245,1713228838349,-500.0,0.00020898,2]
[322720246,1713228838359,-641.33,0.00020898,2]
[322720247,1713228838368,-641.33,0.00020898,2]
[322720248,1713228838377,-641.33,0.00020898,2]
[322720249,1713228838387,-3222.73,0.00020898,2]
[322720250,1713228838396,-3222.73,0.00020898,2]
[322720251,1713228838406,-3222.73,0.00020898,2]
[322720252,1713228838415,-6197.37,0.00020898,2]
[322720253,1713228838424,-6197.37,0.00020898,2]
[322720254,1713228838434,-500.0,0.00020898,2]
[322720255,1713228838443,-6197.37,0.00020898,2]
[322720256,1713228838453,-500.0,0.00020898,2]
[322720257,1713228838461,-500.0,0.00020898,2]
[322720258,1713228838470,-505.88,0.00020898,2]
[322720259,1713228838480,-500.0,0.00020898,2]
[322720260,1713228838488,-505.88,0.00020898,2]
[322720261,1713228838498,-500.0,0.00020898,2]
[322720262,1713228838507,-505.88,0.00020898,2]
[322720263,1713228838516,-500.0,0.00020898,2]
[322720264,1713228838525,-500.0,0.00020898,2]
[322720265,1713228838534,-1695.7,0.00020898,2]
[322720266,1713228838544,-868.3,0.00020898,2]
[322720267,1713228838554,-2882.27,0.00020898,2]
[322720268,1713228838562,-868.3,0.00020898,2]
[322720269,1713228838571,-2882.27,0.00020898,2]
[322720270,1713228838580,-868.3,0.00020898,2]
[322720271,1713228838590,-2882.27,0.00020898,2]
[322720272,1713228838599,-511.48098107,0.00020898,2]
[322720273,1713228838608,-539.44,0.00020898,2]
[322720274,1713228838618,-539.44,0.00020898,2]
[322720275,1713228838627,-539.44,0.00020898,2]
[322720276,1713228838636,-500.0,0.00020898,2]
[322720277,1713228838646,-500.0,0.00020898,2]
[322720278,1713228838655,-282.94742849,0.00020898,2]
[322720279,1713228838664,-500.69,0.00020898,2]
[322720280,1713228838674,-500.69,0.00020898,2]
[322720281,1713228838683,-500.69,0.00020898,2]
[322720282,1713228838692,-532.77876744,0.00020898,2]
[322720283,1713228838702,-587.05,0.00020898,2]
[322720284,1713228838711,-4848.37,0.00020898,2]
[322720285,1713228838721,-587.05,0.00020898,2]
[322720286,1713228838731,-4848.37,0.00020898,2]
[322720287,1713228838740,-587.05,0.00020898,2]
[322720288,1713228838750,-4848.37,0.00020898,2]
[322720289,1713228838760,-4420.78,0.00020898,2]
[322720290,1713228838769,-4420.78,0.00020898,2]
[322720291,1713228838779,-4420.78,0.00020898,2]
[322720292,1713228838788,-3369.91,0.00020898,2]
[322720293,1713228838798,-500.0,0.00020898,2]
[322720294,1713228838808,-323.27134713,0.00020898,2]
[322720295,1713228838818,-1000.0,0.00020898,2]
[322720296,1713228838832,-5446.0,0.00020898,2]
[322720297,1713228838843,-500.0,0.00020898,2]
[322720298,1713228838853,-5446.0,0.00020898,2]
[322720299,1713228838862,-5446.0,0.00020898,2]
[322720300,1713228838874,-2241.89,0.00020898,2]
[322720301,1713228838884,-401.01649553,0.00020898,2]
[322720302,1713228838894,-2468.06,0.00020898,2]
[322720303,1713228838904,-2468.06,0.00020898,2]
[322720304,1713228838915,-2468.06,0.00020898,2]
[322720305,1713228838925,-2809.86,0.00020898,2]
[322720306,1713228838935,-2809.86,0.00020898,2]
[322720307,1713228838945,-2809.86,0.00020898,2]
[322720308,1713228838956,-511.39373656,0.00020898,2]
[322720309,1713228838966,-555.07,0.00020898,2]
[322720310,1713228838975,-555.07,0.00020898,2]
[322720311,1713228838984,-555.07,0.00020898,2]
[322720312,1713228838994,-2642.39,0.00020898,2]
[322720313,1713228839004,-2642.39,0.00020898,2]
[322720314,1713228839014,-2642.39,0.00020898,2]
[322720315,1713228839024,-170.73400986,0.00020898,2]
[322720316,1713228839035,-514.321055,0.00020898,2]
[322720317,1713228839045,-500.0,0.00020898,2]
[322720318,1713228839055,-552.19243801,0.00020898,2]
[322720319,1713228839065,-2229.94,0.00020898,2]
[322720320,1713228839075,-617.81,0.00020898,2]
[322720321,1713228839085,-617.81,0.00020898,2]
[322720322,1713228839095,-617.81,0.00020898,2]
[322720323,1713228839105,-2801.33,0.00020898,2]
[322720324,1713228839115,-2801.33,0.00020898,2]
[322720325,1713228839124,-2801.33,0.00020898,2]
[322720326,1713228839133,-200.40393544,0.00020898,2]
[322720327,1713228839142,-500.0,0.00020898,2]
[322720328,1713228839152,-2744.41,0.00020898,2]
[322720329,1713228839161,-500.0,0.00020898,2]
[322720330,1713228839170,-3214.86,0.00020898,2]
[322720331,1713228839179,-500.0,0.00020898,2]
[322720332,1713228839188,-3214.86,0.00020898,2]
[322720333,1713228839198,-3214.86,0.00020898,2]
[322720334,1713228839207,-5113.26,0.00020898,2]
[322720335,1713228839217,-5113.26,0.00020898,2]
[322720336,1713228839227,-500.0,0.00020898,2]
[322720337,1713228839237,-5113.26,0.00020898,2]
[322720338,1713228839246,-1650.46,0.00020898,2]
[322720339,1713228839255,-1650.46,0.00020898,2]
[322720340,1713228839265,-1650.46,0.00020898,2]
[322720341,1713228839274,-500.0,0.00020898,2]
[322720342,1713228839284,-631.74281261,0.00020898,2]
[322720343,1713228839293,-2057.44,0.00020898,2]
[322720344,1713228839302,-1075.66,0.00020898,2]
[322720345,1713228839313,-1075.66,0.00020898,2]
[322720346,1713228839322,-1075.66,0.00020898,2]
[322720347,1713228839332,-500.0,0.00020898,2]
[322720348,1713228839342,-500.0,0.00020898,2]
[322720349,1713228839351,-222.95909793,0.00020898,2]
[322720350,1713228839360,-500.0,0.00020898,2]
[322720351,1713228839370,-2867.47,0.00020898,2]
[322720352,1713228839379,-2867.47,0.00020898,2]
[322720353,1713228839388,-2867.47,0.00020898,2]
[322720354,1713228839398,-1353.06,0.00020898,2]
[322720355,1713228839407,-1353.06,0.00020898,2]
[322720356,1713228839417,-2735.25,0.00020898,2]
[322720357,1713228839427,-1353.06,0.00020898,2]
[322720358,1713228839436,-2052.03,0.00020898,2]
[322720359,1713228839446,-2052.03,0.00020898,2]
[322720360,1713228839456,-2052.03,0.00020898,2]
[322720361,1713228839466,-3198.34,0.00020898,2]
[322720362,1713228839475,-3198.34,0.00020898,2]
[322720363,1713228839485,-3198.34,0.00020898,2]
[322720364,1713228839494,-500.0,0.00020898,2]
[322720365,1713228839504,-500.0,0.00020898,2]
[322720366,1713228839514,-500.0,0.00020898,2]
[322720367,1713228839524,-1608.25,0.00020898,2]
[322720368,1713228839535,-1608.25,0.00020898,2]
[322720369,1713228839544,-1608.25,0.00020898,2]
[322720370,1713228839554,-823.69,0.00020898,2]